fUSD/lending_fUSD_20250523
["ID","MTS","AMOUNT","RATE_DAILY","PERIOD"]
[362098643,1747992651614,-420.0,0.00028077,4]
[362098644,1747992651625,-420.0,0.00028077,4]
[362098645,1747992651635,-2198.94,0.00028077,4]
[362098646,1747992651648,-831.54,0.00028077,4]
[362098647,1747992651659,-1664.25,0.00028077,4]
[362098648,1747992651670,-420.0,0.00028078,4]
[362098649,1747992651681,-420.0,0.00028078,4]
[362098650,1747992651692,-420.0,0.00028078,4]
[362098651,1747992651702,-420.0,0.00028078,4]
[362098652,1747992651713,-424.92,0.00028078,4]
[362098653,1747992651724,-162.99927786,0.00028078,4]
[362098654,1747992651735,-420.0,0.00028078,4]
[362098655,1747992651746,-420.0,0.00028078,4]
[362098656,1747992651757,-420.0,0.00028078,4]
[362098657,1747992651768,-420.0,0.00028078,4]
[362098658,1747992651780,-420.0,0.00028078,4]
[362098659,1747992651790,-420.0,0.00028078,4]
[362098660,1747992651801,-420.0,0.00028078,4]
[362098661,1747992651812,-420.0,0.00028078,4]
[362098662,1747992651824,-478.64,0.00028078,4]
[362098663,1747992651834,-420.0,0.00028078,4]
[362098664,1747992651844,-420.0,0.00028078,4]
[362098665,1747992651856,-420.0,0.00028078,4]
[362098666,1747992651866,-420.0,0.00028078,4]
[362098667,1747992651876,-420.0,0.00028078,4]
[362098668,1747992651887,-200.27,0.00028078,4]
[362098669,1747992651898,-420.0,0.00028078,4]
[362098670,1747992651909,-427.170036,0.00028078,4]
[362098671,1747992651920,-420.0,0.00028078,4]
[362098672,1747992651931,-420.0,0.00028078,4]
[362098673,1747992651941,-420.0,0.00028078,4]
[362098674,1747992651949,-420.0,0.00028078,4]
[362098675,1747992651958,-420.0,0.00028078,4]
[362098676,1747992651968,-420.0,0.00028078,4]
[362098677,1747992651978,-420.0,0.00028078,4]
[362098678,1747992651987,-434.31,0.00028078,4]
[362098679,1747992651997,-382.64,0.00028078,4]
[362098680,1747992652006,-420.0,0.00028078,4]
[362098681,1747992652015,-422.02109305,0.00028078,4]
[362098682,1747992652024,-420.0,0.00028078,4]
[362098683,1747992652033,-420.0,0.00028078,4]
[362098684,1747992652043,-420.0,0.00028078,4]
[362098685,1747992652053,-420.0,0.00028078,4]
[362098686,1747992652062,-1000.0,0.00028078,2]
[362098687,1747992652072,-453.88,0.00028078,4]
[362098688,1747992652081,-539.59,0.00028078,4]
[362098689,1747992652091,-468.66164311,0.00028078,4]
[362098690,1747992652100,-420.0,0.00028078,4]
[362098691,1747992652110,-420.0,0.00028078,4]
[362098692,1747992652119,-434.36622123,0.00028078,4]
[362098693,1747992652128,-420.0,0.00028078,4]
[362098694,1747992652138,-420.0,0.00028078,4]
[362098695,1747992652147,-420.0,0.00028078,4]
[362098696,1747992652157,-420.0,0.00028078,4]
[362098697,1747992652167,-420.0,0.00028078,4]
[362098698,1747992652176,-420.0,0.00028078,4]
[362098699,1747992652184,-420.0,0.00028078,4]
[362098700,1747992652193,-420.0,0.00028078,4]
[362098701,1747992652201,-423.91016174,0.00028078,4]
[362098702,1747992652209,-420.0,0.00028078,4]
[362098703,1747992652219,-420.0,0.00028078,4]
[362098704,1747992652228,-420.0,0.00028078,4]
[362098705,1747992652238,-420.0,0.00028078,4]
[362098706,1747992652247,-420.0,0.00028078,4]
[362098707,1747992652256,-2996.68,0.00028078,4]
[362098708,1747992652265,-531.73497709,0.00028078,4]
[362098709,1747992652275,-420.0,0.00028078,4]
[362098710,1747992652284,-420.0,0.00028078,4]
[362098711,1747992652293,-420.0,0.00028078,4]
[362098712,1747992652303,-420.0,0.00028078,4]
[362098713,1747992652312,-420.0,0.00028078,4]
[362098714,1747992652321,-420.0,0.00028078,4]
[362098715,1747992652331,-420.0,0.00028078,4]
[362098716,1747992652340,-420.0,0.00028078,4]
[362098717,1747992652350,-420.0,0.00028078,4]
[362098718,1747992652359,-420.0,0.00028078,4]
[362098719,1747992652368,-245.95,0.00028078,4]
[362098720,1747992652377,-420.0,0.00028078,4]
[362098721,1747992652757,-420.0,0.00028078,4]
[362098722,1747992652777,-2446.02,0.00028078,4]
[362098723,1747992652794,-420.0,0.00028078,4]
[362098724,1747992652803,-420.0,0.00028078,4]
[362098725,1747992652813,-420.0,0.00028078,4]
[362098726,1747992652823,-420.0,0.00028078,4]
[362098727,1747992652832,-420.0,0.00028078,4]
[362098728,1747992652841,-420.0,0.00028078,4]
[362098729,1747992652850,-420.0,0.00028078,4]
[362098730,1747992652859,-420.0,0.00028078,4]
[362098731,1747992652868,-420.0,0.00028078,4]
[362098732,1747992652877,-420.0,0.00028078,4]
[362098733,1747992652886,-461.55,0.00028078,4]
[362098734,1747992652895,-420.0,0.00028078,4]
[362098735,1747992652904,-420.0,0.00028078,4]
[362098736,1747992652913,-431.18,0.00028078,4]
[362098737,1747992652922,-420.0,0.00028078,4]
[362098738,1747992652931,-420.0,0.00028078,4]
[362098739,1747992652940,-2000.0,0.00028078,4]
[362098740,1747992652949,-420.0,0.00028078,4]
[362098741,1747992652959,-420.0,0.00028078,4]
[362098742,1747992652970,-420.0,0.00028078,4]
[362098743,1747992652980,-181.71,0.00028078,4]
[362098744,1747992652990,-420.0,0.00028078,4]
[362098745,1747992653000,-460.68458676,0.00028078,4]
[362098746,1747992653010,-420.0,0.00028078,4]
[362098747,1747992653019,-420.0,0.00028078,4]
[362098748,1747992653028,-420.0,0.00028078,4]
[362098749,1747992653038,-420.0,0.00028078,4]
[362098750,1747992653048,-361.8,0.00028078,4]
[362098751,1747992653058,-509.37,0.00028078,4]
[362098752,1747992653068,-420.0,0.00028078,4]
[362098753,1747992653077,-420.0,0.00028078,4]
[362098754,1747992653088,-420.0,0.00028078,4]
[362098755,1747992653097,-420.0,0.00028078,4]
[362098756,1747992653107,-420.0,0.00028078,4]
[362098757,1747992653116,-349.81,0.00028078,4]
[362098758,1747992653126,-420.0,0.00028079,4]
[362098759,1747992653135,-420.0,0.00028079,4]
[362098760,1747992653145,-420.0,0.00028079,4]
[362098761,1747992653155,-420.0,0.00028079,4]
[362098762,1747992653164,-420.0,0.00028079,4]
[362098763,1747992653174,-420.0,0.00028079,4]
[362098764,1747992653184,-420.0,0.00028079,4]
[362098765,1747992653194,-420.0,0.00028079,4]
[362098766,1747992653203,-420.0,0.00028079,4]
[362098767,1747992653212,-420.0,0.00028079,4]
[362098768,1747992653222,-420.0,0.00028079,4]
[362098769,1747992653232,-420.0,0.00028079,4]
[362098770,1747992653241,-420.0,0.00028079,4]
[362098771,1747992653251,-439.19,0.00028079,4]
[362098772,1747992653260,-420.0,0.00028079,4]
[362098773,1747992653270,-420.0,0.00028079,4]
[362098774,1747992653279,-420.0,0.00028079,4]
[362098775,1747992653289,-420.0,0.00028079,4]
[362098776,1747992653298,-420.0,0.00028079,4]
[362098777,1747992653307,-420.0,0.00028079,4]
[362098778,1747992653316,-420.0,0.00028079,4]
[362098779,1747992653325,-420.0,0.00028079,4]
[362098780,1747992653335,-187.65759999,0.00028079,4]
[362098781,1747992653344,-420.0,0.00028079,4]
[362098782,1747992653354,-243.26,0.00028079,4]
[362098783,1747992653367,-420.0,0.00028079,4]
[362098784,1747992653377,-420.0,0.00028079,4]
[362098785,1747992653386,-425.60035857,0.00028079,4]
[362098786,1747992653396,-420.0,0.00028079,4]
[362098787,1747992653405,-420.0,0.00028079,4]
[362098788,1747992653415,-447.21,0.00028079,4]
[362098789,1747992653425,-420.0,0.00028079,4]
[362098790,1747992653434,-420.0,0.00028079,4]
[362098791,1747992653444,-427.43310548,0.00028079,4]
[362098792,1747992653453,-422.65782651,0.00028079,4]
[362098793,1747992653462,-420.0,0.00028079,4]
[362098794,1747992653472,-420.0,0.00028079,4]
[362098795,1747992653482,-420.0,0.00028079,4]
[362098796,1747992653491,-424.98906355,0.00028079,4]
[362098797,1747992653502,-420.0,0.00028079,4]
[362098798,1747992653511,-420.0,0.00028079,4]
[362098799,1747992653521,-2107.79,0.00028079,4]
[362098800,1747992653531,-420.0,0.00028079,4]
[362098801,1747992653540,-420.0,0.00028079,4]
[362098802,1747992653550,-601.93,0.00028079,4]
[362098803,1747992653559,-320.23928704,0.00028079,4]
[362098804,1747992653571,-799.93,0.00028079,4]
[362098805,1747992653581,-420.0,0.00028079,4]
[362098806,1747992653590,-1476.33,0.00028079,4]
[362098807,1747992653599,-453.28418235,0.00028079,4]
[362098808,1747992653610,-420.0,0.00028079,4]
[362098809,1747992653620,-420.0,0.00028079,4]
[362098810,1747992653630,-420.0,0.00028079,4]
[362098811,1747992653639,-420.0,0.00028079,4]
[362098812,1747992653651,-310.03216595,0.00028079,4]
[362098813,1747992653661,-420.0,0.00028079,4]
[362098814,1747992653672,-420.58,0.00028079,4]
[362098815,1747992653683,-420.0,0.00028079,4]
[362098816,1747992653693,-420.0,0.00028079,4]
[362098817,1747992653703,-420.0,0.00028079,4]
[362098818,1747992653715,-420.0,0.00028079,4]
[362098819,1747992653725,-420.0,0.00028079,4]
[362098820,1747992653735,-420.0,0.00028079,4]
[362098821,1747992653745,-420.0,0.00028079,4]
[362098822,1747992653755,-420.0,0.00028079,4]
[362098823,1747992653765,-420.0,0.00028079,4]
[362098824,1747992653775,-420.0,0.00028079,4]
[362098825,1747992653785,-580.98,0.00028079,4]
[362098826,1747992653795,-420.0,0.00028079,4]
[362098827,1747992653804,-420.0,0.00028079,4]
[362098828,1747992653815,-342.29,0.00028079,4]
[362098829,1747992653825,-420.0,0.00028079,4]
[362098830,1747992653835,-300.0,0.00028079,4]
[362098831,1747992653844,-420.0,0.00028079,4]
[362098832,1747992653853,-367.9,0.0002808,4]
[362098833,1747992653863,-353.33980709,0.0002808,4]
[362098834,1747992653873,-420.0,0.0002808,4]
[362098835,1747992653883,-420.0,0.0002808,4]
[362098836,1747992653892,-210.33,0.0002808,4]
[362098837,1747992653902,-420.0,0.0002808,4]
[362098838,1747992653912,-420.0,0.0002808,4]
[362098839,1747992653922,-420.0,0.0002808,4]
[362098840,1747992653931,-498.31,0.0002808,4]
[362098841,1747992653941,-420.0,0.0002808,4]
[362098842,1747992653950,-420.0,0.0002808,4]
[362098843,1747992653960,-420.0,0.0002808,4]
[362098844,1747992653971,-420.0,0.0002808,4]
[362098845,1747992653981,-348.76,0.0002808,4]
[362098846,1747992653991,-420.0,0.0002808,4]
[362098847,1747992654000,-420.0,0.0002808,4]
[362098848,1747992654010,-245.15,0.0002808,4]
[362098849,1747992654020,-420.0,0.0002808,4]
[362098850,1747992654030,-420.0,0.0002808,4]
[362098851,1747992654040,-420.0,0.0002808,4]
[362098852,1747992654050,-184.51,0.0002808,4]
[362098853,1747992654060,-420.0,0.0002808,4]
[362098854,1747992654070,-420.0,0.0002808,4]
[362098855,1747992654079,-420.0,0.0002808,4]
[362098856,1747992654090,-420.0,0.0002808,4]
[362098857,1747992654099,-420.0,0.0002808,4]
[362098858,1747992654109,-667.97,0.0002808,2]
[362098859,1747992654120,-420.0,0.0002808,4]
[362098860,1747992654130,-420.0,0.0002808,4]
[362098861,1747992654139,-438.47,0.0002808,4]
[362098862,1747992654149,-420.0,0.0002808,4]
[362098863,1747992654158,-420.0,0.0002808,4]
[362098864,1747992654168,-420.0,0.0002808,4]
[362098865,1747992654178,-420.0,0.0002808,4]
[362098866,1747992654188,-420.0,0.0002808,4]
[362098867,1747992654198,-166.105903,0.0002808,4]
[362098868,1747992654207,-420.0,0.0002808,4]
[362098869,1747992654218,-420.0,0.0002808,4]
[362098870,1747992654228,-245.31,0.0002808,4]
[362098871,1747992654237,-499.728311,0.0002808,4]
[362098872,1747992654247,-420.0,0.00028081,4]
[362098873,1747992654256,-394.15,0.00028081,4]
[362098874,1747992654266,-294.32675657,0.00028116,2]
[362098875,1747992654275,-9260.26710295,0.00028174,3]
[362098876,1747992654284,-9538.47275136,0.00028183,3]
[362098877,1747992654294,-9260.26710295,0.00028183,3]
[362098878,1747992654304,-1471.77350196,0.00028185,2]
[362098879,1747992654313,-6685.34675034,0.00028193,2]
[362098880,1747992654590,-420.0,0.00028078,4]
[362098881,1747992654600,-547.54304343,0.00028193,2]
[362098882,1747992654611,-9538.47275136,0.00028195,3]
[362098883,1747992654621,-9260.26710295,0.00028195,3]
[362098884,1747992654631,-9260.26710295,0.00028196,3]
[362098885,1747992654640,-9260.26710295,0.00028198,3]
[362098886,1747992654651,-420.0,0.00028205,4]
[362098887,1747992654661,-420.0,0.00028205,4]
[362098888,1747992654672,-503.25,0.00028205,4]
[362098889,1747992654682,-420.0,0.00028205,4]
[362098890,1747992654691,-420.0,0.00028205,4]
[362098891,1747992654700,-420.0,0.00028205,2]
[362098892,1747992654710,-420.0,0.00028205,4]
[362098893,1747992654720,-420.0,0.00028205,4]
[362098894,1747992654730,-420.0,0.00028205,4]
[362098895,1747992654739,-420.0,0.00028205,4]
[362098896,1747992654749,-420.0,0.00028205,4]
[362098897,1747992654759,-420.0,0.00028205,4]
[362098898,1747992654768,-420.0,0.00028205,4]
[362098899,1747992654778,-420.0,0.00028205,4]
[362098900,1747992654788,-420.0,0.00028205,4]
[362098901,1747992654798,-420.0,0.00028205,4]
[362098902,1747992654809,-18520.5342059,0.00028205,3]
[362098903,1747992654819,-18520.5342059,0.00028206,3]
[362098904,1747992654828,-9260.26710295,0.00028207,3]
[362098905,1747992654838,-184.05,0.00028214,4]
[362098906,1747992654848,-420.0,0.00028214,4]
[362098907,1747992654857,-420.0,0.00028214,4]
[362098908,1747992654867,-153.11943052,0.00028214,4]
[362098909,1747992654877,-420.0,0.00028214,4]
[362098910,1747992654887,-420.0,0.00028214,4]
[362098911,1747992654896,-420.0,0.00028214,4]
[362098912,1747992654906,-420.0,0.00028214,4]
[362098913,1747992654916,-420.0,0.00028214,4]
[362098914,1747992654926,-489.53,0.00028214,4]
[362098915,1747992654937,-420.0,0.00028214,4]
[362098916,1747992654947,-420.0,0.00028214,4]
[362098917,1747992654957,-5141.23,0.00028214,4]
[362098918,1747992654967,-420.0,0.00028214,4]
[362098919,1747992654977,-399.28,0.00028214,4]
[362098920,1747992654987,-420.0,0.00028214,4]
[362098921,1747992654998,-195.53,0.00028214,4]
[362098922,1747992655008,-420.0,0.00028214,4]
[362098923,1747992655019,-420.0,0.00028214,4]
[362098924,1747992655029,-420.0,0.00028214,4]
[362098925,1747992655039,-420.0,0.00028214,4]
[362098926,1747992655048,-495.97,0.00028214,4]
[362098927,1747992655058,-733.58,0.00028214,4]
[362098928,1747992655068,-420.0,0.00028214,4]
[362098929,1747992655078,-1172.92,0.00028214,4]
[362098930,1747992655089,-420.0,0.00028214,4]
[362098931,1747992655099,-420.0,0.00028214,4]
[362098932,1747992655109,-304.94,0.00028214,4]
[362098933,1747992655119,-420.0,0.00028214,4]
[362098934,1747992655128,-2198.94,0.00028214,4]
[362098935,1747992655138,-831.54,0.00028214,4]
[362098936,1747992655147,-1664.25,0.00028214,4]
[362098937,1747992655158,-420.0,0.00028215,4]
[362098938,1747992655167,-420.0,0.00028215,4]
[362098939,1747992655177,-420.0,0.00028215,4]
[362098940,1747992655187,-420.0,0.00028215,4]
[362098941,1747992655197,-339.57,0.00028215,4]
[362098942,1747992655206,-420.0,0.00028215,4]
[362098943,1747992655216,-420.0,0.00028215,4]
[362098944,1747992655226,-420.0,0.00028215,4]
[362098945,1747992655236,-420.0,0.00028215,4]
[362098946,1747992655246,-420.0,0.00028215,4]
[362098947,1747992655256,-420.0,0.00028215,4]
[362098948,1747992655266,-420.0,0.00028215,4]
[362098949,1747992655276,-198.82,0.00028215,4]
[362098950,1747992655285,-256.27,0.00028215,4]
[362098951,1747992655295,-371.37,0.00028215,4]
[362098952,1747992655305,-420.0,0.00028215,4]
[362098953,1747992655314,-420.0,0.00028215,4]
[362098954,1747992655324,-420.0,0.00028215,4]
[362098955,1747992655335,-279.73,0.00028215,4]
[362098956,1747992655345,-420.0,0.00028215,4]
[362098957,1747992655355,-420.0,0.00028215,4]
[362098958,1747992655365,-420.0,0.00028215,4]
[362098959,1747992655375,-312.87,0.00028215,4]
[362098960,1747992655385,-1000.0,0.00028215,2]
[362098961,1747992655395,-420.0,0.00028215,4]
[362098962,1747992655405,-420.0,0.00028215,4]
[362098963,1747992655415,-420.0,0.00028215,4]
[362098964,1747992655424,-420.0,0.00028215,4]
[362098965,1747992655434,-420.0,0.00028215,4]
[362098966,1747992655448,-420.0,0.00028215,4]
[362098967,1747992655459,-420.0,0.00028215,4]
[362098968,1747992655469,-420.0,0.00028215,4]
[362098969,1747992655479,-420.0,0.00028215,4]
[362098970,1747992655489,-420.0,0.00028215,4]
[362098971,1747992655499,-420.0,0.00028215,4]
[362098972,1747992655509,-420.0,0.00028215,4]
[362098973,1747992655518,-420.0,0.00028215,4]
[362098974,1747992655528,-443.7,0.00028215,4]
[362098975,1747992655538,-2996.68,0.00028215,4]
[362098976,1747992655549,-420.0,0.00028215,4]
[362098977,1747992655558,-486.59,0.00028215,4]
[362098978,1747992655569,-420.0,0.00028215,4]
[362098979,1747992655581,-420.0,0.00028215,4]
[362098980,1747992655591,-420.0,0.00028215,4]
[362098981,1747992655600,-420.0,0.00028215,4]
[362098982,1747992655610,-420.0,0.00028215,4]
[362098983,1747992655621,-420.0,0.00028215,4]
[362098984,1747992655631,-409.33,0.00028215,4]
[362098985,1747992655641,-2446.02,0.00028215,4]
[362098986,1747992655654,-420.0,0.00028215,4]
[362098987,1747992655664,-420.0,0.00028215,4]
[362098988,1747992655674,-420.0,0.00028215,4]
[362098989,1747992655684,-420.0,0.00028215,4]
[362098990,1747992655695,-420.0,0.00028215,4]
[362098991,1747992655704,-420.0,0.00028215,4]
[362098992,1747992655714,-420.0,0.00028215,4]
[362098993,1747992655724,-461.55,0.00028215,4]
[362098994,1747992655736,-420.0,0.00028215,4]
[362098995,1747992655747,-278.09,0.00028215,4]
[362098996,1747992655756,-352.6,0.00028215,4]
[362098997,1747992655767,-420.0,0.00028215,4]
[362098998,1747992655777,-420.0,0.00028215,4]
[362098999,1747992655981,-420.0,0.00028215,4]
[362099000,1747992655993,-420.0,0.00028215,4]
[362099001,1747992656003,-420.0,0.00028215,4]
[362099002,1747992656013,-420.0,0.00028215,4]
[362099003,1747992656023,-303.71,0.00028215,4]
[362099004,1747992656034,-420.0,0.00028215,4]
[362099005,1747992656043,-420.0,0.00028215,4]
[362099006,1747992656053,-354.53,0.00028216,4]
[362099007,1747992656062,-228.99,0.00028216,4]
[362099008,1747992656071,-420.0,0.00028216,4]
[362099009,1747992656081,-420.0,0.00028216,4]
[362099010,1747992656091,-420.0,0.00028216,4]
[362099011,1747992656100,-420.0,0.00028216,4]
[362099012,1747992656110,-420.0,0.00028216,4]
[362099013,1747992656119,-182.88,0.00028216,4]
[362099014,1747992656128,-420.0,0.00028216,4]
[362099015,1747992656137,-394.81,0.00028216,4]
[362099016,1747992656147,-420.0,0.00028216,4]
[362099017,1747992656156,-420.0,0.00028216,4]
[362099018,1747992656165,-439.19,0.00028216,4]
[362099019,1747992656175,-181.46,0.00028216,4]
[362099020,1747992656184,-186.87516717,0.00028216,4]
[362099021,1747992656193,-261.01,0.00028216,4]
[362099022,1747992656202,-420.0,0.00028216,4]
[362099023,1747992656212,-420.0,0.00028216,4]
[362099024,1747992656221,-420.0,0.00028216,4]
[362099025,1747992656231,-420.0,0.00028216,4]
[362099026,1747992656240,-420.0,0.00028216,4]
[362099027,1747992656249,-176.84,0.00028216,4]
[362099028,1747992656260,-420.0,0.00028216,4]
[362099029,1747992656269,-420.0,0.00028216,4]
[362099030,1747992656279,-420.0,0.00028216,4]
[362099031,1747992656288,-420.0,0.00028216,4]
[362099032,1747992656297,-281.81,0.00028216,4]
[362099033,1747992656307,-420.0,0.00028216,4]
[362099034,1747992656317,-2107.79,0.00028216,4]
[362099035,1747992656326,-420.0,0.00028216,4]
[362099036,1747992656337,-420.0,0.00028216,4]
[362099037,1747992656346,-601.93,0.00028216,4]
[362099038,1747992656355,-799.93,0.00028216,4]
[362099039,1747992656365,-420.0,0.00028216,4]
[362099040,1747992656374,-1476.33,0.00028216,4]
[362099041,1747992656383,-420.0,0.00028216,4]
[362099042,1747992656393,-420.0,0.00028216,4]
[362099043,1747992656402,-409.71,0.00028216,4]
[362099044,1747992656411,-420.0,0.00028216,4]
[362099045,1747992656422,-420.0,0.00028216,4]
[362099046,1747992656432,-420.58,0.00028216,4]
[362099047,1747992656442,-420.0,0.00028216,4]
[362099048,1747992656452,-420.0,0.00028216,4]
[362099049,1747992656461,-420.0,0.00028216,4]
[362099050,1747992656472,-420.0,0.00028216,4]
[362099051,1747992656482,-420.0,0.00028216,4]
[362099052,1747992656492,-447.74,0.00028216,4]
[362099053,1747992656501,-420.0,0.00028216,4]
[362099054,1747992656511,-420.0,0.00028216,4]
[362099055,1747992656522,-580.98,0.00028216,4]
[362099056,1747992656531,-334.39,0.00028216,4]
[362099057,1747992656541,-420.0,0.00028216,4]
[362099058,1747992656551,-290.88,0.00028216,4]
[362099059,1747992656561,-151.0,0.00028217,7]
[362099060,1747992656573,-224.895043,0.00028217,7]
[362099061,1747992656583,-224.895043,0.00028217,7]
[362099062,1747992656593,-151.0,0.00028217,7]
[362099063,1747992656602,-420.0,0.00028217,4]
[362099064,1747992656613,-483.41,0.00028217,4]
[362099065,1747992656623,-420.0,0.00028217,4]
[362099066,1747992656633,-231.82,0.00028217,4]
[362099067,1747992656643,-363.28,0.00028217,4]
[362099068,1747992656654,-420.0,0.00028217,4]
[362099069,1747992656665,-420.0,0.00028217,4]
[362099070,1747992656675,-410.54,0.00028217,4]
[362099071,1747992656685,-420.0,0.00028217,4]
[362099072,1747992656695,-426.08,0.00028217,4]
[362099073,1747992656705,-389.61,0.00028217,4]
[362099074,1747992656715,-420.0,0.00028217,4]
[362099075,1747992656726,-200.39,0.00028217,4]
[362099076,1747992656736,-420.0,0.00028217,4]
[362099077,1747992656746,-420.0,0.00028217,4]
[362099078,1747992656756,-556.51,0.00028217,4]
[362099079,1747992656766,-420.0,0.00028217,4]
[362099080,1747992656775,-420.0,0.00028217,4]
[362099081,1747992656785,-169.03,0.00028217,4]
[362099082,1747992656795,-667.97,0.00028217,2]
[362099083,1747992656805,-420.0,0.00028217,4]
[362099084,1747992656815,-420.0,0.00028217,4]
[362099085,1747992656824,-322.46,0.00028217,4]
[362099086,1747992656834,-420.0,0.00028217,4]
[362099087,1747992656845,-420.0,0.00028217,4]
[362099088,1747992656854,-420.0,0.00028217,4]
[362099089,1747992656864,-420.0,0.00028217,4]
[362099090,1747992656874,-420.0,0.00028217,4]
[362099091,1747992656883,-420.0,0.00028217,4]
[362099092,1747992656893,-499.728311,0.00028217,4]
[362099093,1747992656902,-195.91,0.00028218,4]
[362099094,1747992656912,-9260.26710295,0.00028314,3]
[362099095,1747992656922,-9260.26710295,0.00028324,3]
[362099096,1747992656932,-9260.26710295,0.00028333,3]
[362099097,1747992656942,-9260.26710295,0.00028334,3]
[362099098,1747992656952,-9260.26710295,0.00028341,3]
[362099099,1747992656962,-420.0,0.00028342,4]
[362099100,1747992656973,-420.0,0.00028342,4]
[362099101,1747992656983,-420.0,0.00028342,4]
[362099102,1747992656993,-420.0,0.00028342,2]
[362099103,1747992657003,-411.61,0.00028342,4]
[362099104,1747992657013,-337.47248855,0.00028342,4]
[362099105,1747992657022,-420.0,0.00028342,4]
[362099106,1747992657032,-420.0,0.00028342,4]
[362099107,1747992657041,-420.0,0.00028342,4]
[362099108,1747992657051,-420.0,0.00028342,4]
[362099109,1747992657061,-523.1,0.00028342,4]
[362099110,1747992657070,-420.0,0.00028342,4]
[362099111,1747992657080,-9260.26710295,0.00028342,3]
[362099112,1747992657090,-18520.5342059,0.00028343,3]
[362099113,1747992657100,-150.0,0.00028346,2]
[362099114,1747992657110,-420.0,0.00028351,4]
[362099115,1747992657119,-385.15,0.00028351,4]
[362099116,1747992657129,-420.0,0.00028351,4]
[362099117,1747992657139,-420.0,0.00028351,4]
[362099118,1747992657149,-269.2,0.00028351,4]
[362099119,1747992657160,-164.48,0.00028351,4]
[362099120,1747992657170,-420.0,0.00028351,4]
[362099121,1747992657179,-489.53,0.00028351,4]
[362099122,1747992657189,-420.0,0.00028351,4]
[362099123,1747992657198,-420.0,0.00028351,4]
[362099124,1747992657207,-5141.23,0.00028351,4]
[362099125,1747992657217,-420.0,0.00028351,4]
[362099126,1747992657226,-13.48878501,0.00028351,4]
[362099127,1747992657378,-420.0,0.00027931,4]
[362099128,1747992657385,-420.0,0.00027931,4]
[362099129,1747992657392,-274.89708848,0.00027931,4]
[362099130,1747992657401,-145.10291152,0.00027931,4]
[362099131,1747992657407,-123.46543543,0.00027941,4]
[362099132,1747992657417,-353.57456457,0.00027941,4]
[362099133,1747992657424,-237.12,0.00028068,4]
[362099134,1747992657430,-226.63,0.00028068,4]
[362099135,1747992657437,-296.33,0.00028215,4]
[362099136,1747992657444,-14.50446948,0.00028351,4]
[362099137,1747992657454,-383.98674551,0.00028351,4]
[362099138,1747992657461,-420.0,0.00028351,4]
[362099139,1747992657468,-420.0,0.00028351,4]
[362099140,1747992657477,-171.257933,0.00028351,4]
[362099141,1747992657485,-420.0,0.00028351,4]
[362099142,1747992657493,-495.97,0.00028351,4]